[Event "*** Titled Tuesday Blitz"]
[Site "Chess.com"]
[Date "2019.02.05"]
[Round "4"]
[White "wonderfultime"]
[Black "yuki_chess123"]
[Result "1/2-1/2"]
[WhiteElo "2872"]
[BlackElo "1988"]
[TimeControl "180+2"]
[EndTime "13:53:30 PST"]
[Termination "Game drawn - insufficient material"]

1. d4 {[%clk 0:03:01.9]} 1... g6 {[%clk 0:03:00.6]} 2. Nf3 {[%clk 0:02:54.5]}
2... Bg7 {[%clk 0:03:01.4]} 3. c3 {[%clk 0:02:51.6]} 3... Nf6 {[%clk 0:02:59.7]}
4. Bg5 {[%clk 0:02:52.6]} 4... d5 {[%clk 0:02:58.3]} 5. Nbd2 {[%clk 0:02:53.6]}
5... O-O {[%clk 0:02:57.1]} 6. e3 {[%clk 0:02:55.1]} 6... Bg4 {[%clk 0:02:32.3]}
7. h3 {[%clk 0:02:53.5]} 7... Bxf3 {[%clk 0:02:32.8]} 8. Nxf3 {[%clk 0:02:55.4]}
8... c6 {[%clk 0:02:32.8]} 9. Bd3 {[%clk 0:02:55.8]} 9... Nbd7 {[%clk 0:02:31]}
10. O-O {[%clk 0:02:56.2]} 10... Re8 {[%clk 0:02:31]} 11. Ne5 {[%clk 0:02:40.9]}
11... Nxe5 {[%clk 0:02:24.2]} 12. dxe5 {[%clk 0:02:41.9]} 12... Nd7 {[%clk
0:02:25.5]} 13. f4 {[%clk 0:02:39.9]} 13... f6 {[%clk 0:02:26.3]} 14. Bh4 {[%clk
0:02:17.1]} 14... fxe5 {[%clk 0:02:26.2]} 15. f5 {[%clk 0:02:16.7]} 15... e4
{[%clk 0:02:27.2]} 16. Be2 {[%clk 0:02:13.9]} 16... Ne5 {[%clk 0:02:21]} 17.
fxg6 {[%clk 0:02:14.4]} 17... Nxg6 {[%clk 0:02:21.1]} 18. Bg5 {[%clk 0:02:12.8]}
18... Rf8 {[%clk 0:02:12.9]} 19. Qb3 {[%clk 0:02:04]} 19... Qb6 {[%clk 0:02:12]}
20. Bh5 {[%clk 0:01:21.8]} 20... Bf6 {[%clk 0:01:51.1]} 21. Bh6 {[%clk
0:01:19.6]} 21... Bg7 {[%clk 0:01:46.4]} 22. Bg5 {[%clk 0:01:14.1]} 22... Bf6
{[%clk 0:01:46.1]} 23. Bh6 {[%clk 0:01:08.9]} 23... Bg7 {[%clk 0:01:46]} 24. Bg5
{[%clk 0:00:21.2]} 24... h6 {[%clk 0:01:04.4]} 25. Bxg6 {[%clk 0:00:12]} 25...
hxg5 {[%clk 0:00:59.3]} 26. Rfe1 {[%clk 0:00:06.4]} 26... Qxb3 {[%clk 0:00:57]}
27. axb3 {[%clk 0:00:07.6]} 27... Rf6 {[%clk 0:00:56.7]} 28. Bh5 {[%clk
0:00:08.8]} 28... a6 {[%clk 0:00:55.6]} 29. Re2 {[%clk 0:00:09.1]} 29... Raf8
{[%clk 0:00:55.2]} 30. Bg4 {[%clk 0:00:11]} 30... Kf7 {[%clk 0:00:52]} 31. g3
{[%clk 0:00:11.8]} 31... e6 {[%clk 0:00:52.2]} 32. Kg2 {[%clk 0:00:13.1]} 32...
Ke7 {[%clk 0:00:53.1]} 33. b4 {[%clk 0:00:14.4]} 33... Rf3 {[%clk 0:00:51.8]}
34. Rg1 {[%clk 0:00:10.3]} 34... Be5 {[%clk 0:00:51.6]} 35. Kh2 {[%clk
0:00:11.7]} 35... Rf2+ {[%clk 0:00:51.7]} 36. Rg2 {[%clk 0:00:10.1]} 36... Rf1
{[%clk 0:00:50.8]} 37. Rg1 {[%clk 0:00:09.7]} 37... R1f6 {[%clk 0:00:37]} 38.
Kg2 {[%clk 0:00:06.3]} 38... Kd6 {[%clk 0:00:36.4]} 39. Rd2 {[%clk 0:00:04]}
39... Ra8 {[%clk 0:00:20.8]} 40. Ra1 {[%clk 0:00:05.1]} 40... Kc7 {[%clk
0:00:20.3]} 41. Rf2 {[%clk 0:00:05.3]} 41... Rxf2+ {[%clk 0:00:20.3]} 42. Kxf2
{[%clk 0:00:07.2]} 42... Rf8+ {[%clk 0:00:21.4]} 43. Kg2 {[%clk 0:00:08.6]}
43... Kd6 {[%clk 0:00:22.9]} 44. Rh1 {[%clk 0:00:09.6]} 44... Rh8 {[%clk
0:00:22.6]} 45. Rf1 {[%clk 0:00:10.5]} 45... Rh6 {[%clk 0:00:22.5]} 46. Rf7
{[%clk 0:00:11.5]} 46... b6 {[%clk 0:00:22.2]} 47. Ra7 {[%clk 0:00:12.5]} 47...
a5 {[%clk 0:00:21.5]} 48. bxa5 {[%clk 0:00:13.6]} 48... bxa5 {[%clk 0:00:22.5]}
49. Rxa5 {[%clk 0:00:15.5]} 49... Rh7 {[%clk 0:00:23]} 50. Ra3 {[%clk
0:00:12.9]} 50... Rb7 {[%clk 0:00:24.1]} 51. b4 {[%clk 0:00:14.4]} 51... Rb6
{[%clk 0:00:23.7]} 52. h4 {[%clk 0:00:15]} 52... gxh4 {[%clk 0:00:24.2]} 53.
gxh4 {[%clk 0:00:16.9]} 53... Rb7 {[%clk 0:00:25.5]} 54. h5 {[%clk 0:00:18.2]}
54... Bf6 {[%clk 0:00:22.9]} 55. Kh3 {[%clk 0:00:15]} 55... Bg5 {[%clk
0:00:23.6]} 56. c4 {[%clk 0:00:13]} 56... Rxb4 {[%clk 0:00:22.9]} 57. cxd5
{[%clk 0:00:13.4]} 57... exd5 {[%clk 0:00:23.5]} 58. Bf5 {[%clk 0:00:14.3]}
58... Rb1 {[%clk 0:00:23.2]} 59. Bg6 {[%clk 0:00:12.8]} 59... c5 {[%clk
0:00:18.6]} 60. Kg4 {[%clk 0:00:13.4]} 60... Rg1+ {[%clk 0:00:18.1]} 61. Kf5
{[%clk 0:00:14.4]} 61... c4 {[%clk 0:00:19.2]} 62. Bf7 {[%clk 0:00:10]} 62...
Kc5 {[%clk 0:00:19.6]} 63. Ra5+ {[%clk 0:00:10.9]} 63... Kb4 {[%clk 0:00:20.4]}
64. Rxd5 {[%clk 0:00:12.3]} 64... Bxe3 {[%clk 0:00:20.6]} 65. Kxe4 {[%clk
0:00:13.7]} 65... Bc1 {[%clk 0:00:20.3]} 66. Rd8 {[%clk 0:00:13.1]} 66... c3
{[%clk 0:00:18.2]} 67. Rc8 {[%clk 0:00:14.6]} 67... Bd2 {[%clk 0:00:18.2]} 68.
Kd3 {[%clk 0:00:13.3]} 68... Rg3+ {[%clk 0:00:18.4]} 69. Kc2 {[%clk 0:00:14.5]}
69... Rh3 {[%clk 0:00:19]} 70. Rc6 {[%clk 0:00:15.3]} 70... Rh4 {[%clk
0:00:19.4]} 71. Rb6+ {[%clk 0:00:15.8]} 71... Kc5 {[%clk 0:00:19.4]} 72. Rb8
{[%clk 0:00:17.7]} 72... Kd6 {[%clk 0:00:19.4]} 73. Bg6 {[%clk 0:00:18]} 73...
Ke7 {[%clk 0:00:19.9]} 74. Rb7+ {[%clk 0:00:18.9]} 74... Kf6 {[%clk 0:00:20.8]}
75. Kd3 {[%clk 0:00:19.2]} 75... Kg5 {[%clk 0:00:21.4]} 76. Rb5+ {[%clk
0:00:19.6]} 76... Kh6 {[%clk 0:00:21.6]} 77. Rb7 {[%clk 0:00:19.7]} 77... Rh3+
{[%clk 0:00:22.5]} 78. Kd4 {[%clk 0:00:20]} 78... Rh4+ {[%clk 0:00:18.5]} 79.
Ke5 {[%clk 0:00:19.6]} 79... Rxh5+ {[%clk 0:00:16.5]} 80. Bxh5 {[%clk
0:00:03.9]} 80... c2 {[%clk 0:00:17.5]} 81. Rb6+ {[%clk 0:00:05.2]} 81... Kxh5
{[%clk 0:00:17.5]} 82. Rc6 {[%clk 0:00:06.7]} 82... c1=Q {[%clk 0:00:17.5]} 83.
Rxc1 {[%clk 0:00:07.8]} 83... Bxc1 {[%clk 0:00:18.7]} 1/2-1/2

[Event "*** Titled Tuesday Blitz"]
[Site "Chess.com"]
[Date "2019.02.05"]
[Round "4"]
[White "vugarrasulov"]
[Black "FelixBlohberger"]
[Result "1/2-1/2"]
[WhiteElo "2856"]
[BlackElo "2666"]
[TimeControl "180+2"]
[EndTime "13:56:21 PST"]
[Termination "Game drawn by 50-move rule"]

1. e4 {[%clk 0:03:01.9]} 1... c5 {[%clk 0:02:57]} 2. Nf3 {[%clk 0:03:02.7]} 2...
d6 {[%clk 0:02:57.7]} 3. d4 {[%clk 0:03:04]} 3... cxd4 {[%clk 0:02:59.2]} 4.
Nxd4 {[%clk 0:03:05.9]} 4... Nf6 {[%clk 0:03:00.5]} 5. Nc3 {[%clk 0:03:07.3]}
5... a6 {[%clk 0:03:01.8]} 6. Be3 {[%clk 0:03:08.6]} 6... e6 {[%clk 0:03:01.7]}
7. g4 {[%clk 0:03:07.2]} 7... h6 {[%clk 0:02:56.1]} 8. h3 {[%clk 0:03:06.9]}
8... b5 {[%clk 0:02:49.6]} 9. Bg2 {[%clk 0:02:53]} 9... Bb7 {[%clk 0:02:49.3]}
10. a3 {[%clk 0:02:50.6]} 10... Nfd7 {[%clk 0:02:48.3]} 11. Qe2 {[%clk
0:02:48.5]} 11... Nc6 {[%clk 0:02:43.4]} 12. O-O-O {[%clk 0:02:49.3]} 12... Rc8
{[%clk 0:02:17.5]} 13. f4 {[%clk 0:02:49.8]} 13... Nxd4 {[%clk 0:01:59.8]} 14.
Bxd4 {[%clk 0:02:50.1]} 14... Qa5 {[%clk 0:02:00.8]} 15. Nd5 {[%clk 0:02:02.1]}
15... exd5 {[%clk 0:01:43.9]} 16. exd5+ {[%clk 0:02:04]} 16... Kd8 {[%clk
0:01:44.8]} 17. Rhe1 {[%clk 0:02:05.6]} 17... Kc7 {[%clk 0:01:22.7]} 18. Kb1
{[%clk 0:01:49.9]} 18... Kb8 {[%clk 0:01:22.6]} 19. h4 {[%clk 0:01:45.9]} 19...
Rg8 {[%clk 0:01:19.4]} 20. g5 {[%clk 0:01:46]} 20... Nb6 {[%clk 0:00:49.5]} 21.
Bh3 {[%clk 0:01:36.6]} 21... Rd8 {[%clk 0:00:47.1]} 22. Bc3 {[%clk 0:01:33.1]}
22... Qa4 {[%clk 0:00:40.5]} 23. Rd4 {[%clk 0:01:16.9]} 23... Nc4 {[%clk
0:00:36.6]} 24. Qd3 {[%clk 0:01:11.5]} 24... hxg5 {[%clk 0:00:28.1]} 25. fxg5
{[%clk 0:01:08.5]} 25... g6 {[%clk 0:00:22.7]} 26. b3 {[%clk 0:00:55.4]} 26...
Qxa3 {[%clk 0:00:23.7]} 27. bxc4 {[%clk 0:00:55.5]} 27... Bg7 {[%clk 0:00:25.1]}
28. Bb2 {[%clk 0:00:53.3]} 28... Qxd3 {[%clk 0:00:22.6]} 29. Rxd3 {[%clk
0:00:55.2]} 29... Bxb2 {[%clk 0:00:23.6]} 30. Kxb2 {[%clk 0:00:57.1]} 30... bxc4
{[%clk 0:00:24.6]} 31. Rd4 {[%clk 0:00:58.2]} 31... Rge8 {[%clk 0:00:13.7]} 32.
Rf1 {[%clk 0:00:52.1]} 32... Re3 {[%clk 0:00:07]} 33. Bg4 {[%clk 0:00:53.3]}
33... c3+ {[%clk 0:00:05.9]} 34. Ka3 {[%clk 0:00:50.9]} 34... Re7 {[%clk
0:00:06.8]} 35. Rb1 {[%clk 0:00:44.1]} 35... Ka7 {[%clk 0:00:06.8]} 36. Rb3
{[%clk 0:00:45.3]} 36... Rh8 {[%clk 0:00:07.5]} 37. Bf3 {[%clk 0:00:39]} 37...
Rc8 {[%clk 0:00:06.4]} 38. Rd3 {[%clk 0:00:34.9]} 38... Rc5 {[%clk 0:00:04.5]}
39. Rbxc3 {[%clk 0:00:36]} 39... Rec7 {[%clk 0:00:04.6]} 40. Rxc5 {[%clk
0:00:36]} 40... Rxc5 {[%clk 0:00:06.5]} 41. Kb3 {[%clk 0:00:36.1]} 41... Kb8
{[%clk 0:00:07.4]} 42. c4 {[%clk 0:00:37.2]} 42... Kc7 {[%clk 0:00:08.2]} 43.
Rd4 {[%clk 0:00:38]} 43... Kd8 {[%clk 0:00:08.5]} 44. h5 {[%clk 0:00:37.8]}
44... gxh5 {[%clk 0:00:08.3]} 45. Bxh5 {[%clk 0:00:39.7]} 45... Rc7 {[%clk
0:00:08.5]} 46. Rf4 {[%clk 0:00:39.4]} 46... Ke8 {[%clk 0:00:07.9]} 47. Rf6
{[%clk 0:00:40.6]} 47... Rd7 {[%clk 0:00:07.2]} 48. Kb4 {[%clk 0:00:40.5]} 48...
Ba8 {[%clk 0:00:03.4]} 49. Ka5 {[%clk 0:00:40.3]} 49... Rc7 {[%clk 0:00:04.1]}
50. Kb6 {[%clk 0:00:37.7]} 50... Rxc4 {[%clk 0:00:05]} 51. Rxf7 {[%clk 0:00:39]}
51... Bxd5 {[%clk 0:00:02.5]} 52. Ra7+ {[%clk 0:00:31.8]} 52... Kf8 {[%clk
0:00:02.1]} 53. g6 {[%clk 0:00:33.2]} 53... Rb4+ {[%clk 0:00:02.4]} 54. Kc7
{[%clk 0:00:31.6]} 54... Kg8 {[%clk 0:00:03.6]} 55. Kxd6 {[%clk 0:00:32.4]}
55... Bb3 {[%clk 0:00:05]} 56. Bf3 {[%clk 0:00:27.3]} 56... Rb6+ {[%clk
0:00:05.2]} 57. Ke5 {[%clk 0:00:25.7]} 57... Rxg6 {[%clk 0:00:05.9]} 58. Be4
{[%clk 0:00:27.4]} 58... Re6+ {[%clk 0:00:05.9]} 59. Kd4 {[%clk 0:00:28.8]}
59... Rd6+ {[%clk 0:00:05.6]} 60. Kc5 {[%clk 0:00:30]} 60... Rf6 {[%clk
0:00:04.8]} 61. Bd3 {[%clk 0:00:29]} 61... Bf7 {[%clk 0:00:05.1]} 62. Bxa6
{[%clk 0:00:29.7]} 62... Rf5+ {[%clk 0:00:04.5]} 63. Kd6 {[%clk 0:00:30.3]}
63... Rf6+ {[%clk 0:00:05.9]} 64. Ke5 {[%clk 0:00:31.7]} 64... Re6+ {[%clk
0:00:05.6]} 65. Kf5 {[%clk 0:00:33.2]} 65... Rd6 {[%clk 0:00:06.1]} 66. Be2
{[%clk 0:00:32.8]} 66... Kf8 {[%clk 0:00:05.9]} 67. Bf3 {[%clk 0:00:33.3]} 67...
Kg8 {[%clk 0:00:06.9]} 68. Be4 {[%clk 0:00:33.3]} 68... Kf8 {[%clk 0:00:07.6]}
69. Kg5 {[%clk 0:00:30.8]} 69... Rb6 {[%clk 0:00:08.5]} 70. Bf5 {[%clk
0:00:31.3]} 70... Kg8 {[%clk 0:00:08.7]} 71. Rc7 {[%clk 0:00:26.4]} 71... Kf8
{[%clk 0:00:09.5]} 72. Be4 {[%clk 0:00:27.5]} 72... Kg8 {[%clk 0:00:10.2]} 73.
Bc6 {[%clk 0:00:28.5]} 73... Rb2 {[%clk 0:00:08.7]} 74. Be4 {[%clk 0:00:21]}
74... Rb6 {[%clk 0:00:08.7]} 75. Bc6 {[%clk 0:00:22.2]} 75... Rb2 {[%clk
0:00:09.4]} 76. Kf6 {[%clk 0:00:23.8]} 76... Rf2+ {[%clk 0:00:10]} 77. Ke7
{[%clk 0:00:25.4]} 77... Re2+ {[%clk 0:00:11.1]} 78. Kd6 {[%clk 0:00:26.6]}
78... Re6+ {[%clk 0:00:11.5]} 79. Kc5 {[%clk 0:00:26.4]} 79... Re5+ {[%clk
0:00:12.2]} 80. Kd4 {[%clk 0:00:27.8]} 80... Re1 {[%clk 0:00:12.6]} 81. Be4
{[%clk 0:00:28.7]} 81... Ra1 {[%clk 0:00:11]} 82. Ke5 {[%clk 0:00:29.1]} 82...
Ra6 {[%clk 0:00:10.6]} 83. Bf5 {[%clk 0:00:27.9]} 83... Rb6 {[%clk 0:00:09.5]}
84. Kf4 {[%clk 0:00:29]} 84... Ra6 {[%clk 0:00:08.9]} 85. Rc1 {[%clk 0:00:29.7]}
85... Rb6 {[%clk 0:00:09.8]} 86. Rg1+ {[%clk 0:00:30.7]} 86... Kf8 {[%clk
0:00:11]} 87. Kg5 {[%clk 0:00:32.5]} 87... Rd6 {[%clk 0:00:10.7]} 88. Rc1 {[%clk
0:00:33.3]} 88... Rb6 {[%clk 0:00:11.4]} 89. Rc7 {[%clk 0:00:34.2]} 89... Rd6
{[%clk 0:00:11.7]} 90. Be4 {[%clk 0:00:35.3]} 90... Rb6 {[%clk 0:00:12.5]} 91.
Kf4 {[%clk 0:00:36.4]} 91... Kg8 {[%clk 0:00:12.7]} 92. Ke5 {[%clk 0:00:37.4]}
92... Kf8 {[%clk 0:00:12.5]} 93. Bc6 {[%clk 0:00:38.4]} 93... Rb1 {[%clk
0:00:12.3]} 94. Bf3 {[%clk 0:00:36.7]} 94... Rb5+ {[%clk 0:00:11.4]} 95. Kf6
{[%clk 0:00:35.8]} 95... Rb6+ {[%clk 0:00:12.4]} 96. Kg5 {[%clk 0:00:36.5]}
96... Kg8 {[%clk 0:00:09.7]} 97. Bg4 {[%clk 0:00:37.2]} 97... Rb5+ {[%clk
0:00:08.9]} 98. Kf6 {[%clk 0:00:34.3]} 98... Rb6+ {[%clk 0:00:09.8]} 99. Ke7
{[%clk 0:00:35.6]} 99... Rb4 {[%clk 0:00:09]} 100. Bf5 {[%clk 0:00:36.9]} 100...
Rb6 {[%clk 0:00:09.1]} 101. Rc3 {[%clk 0:00:33.8]} 101... Rb7+ {[%clk
0:00:08.6]} 102. Bd7 {[%clk 0:00:35.1]} 102... Bg6 {[%clk 0:00:06.2]} 103. Kd6
{[%clk 0:00:31.7]} 103... Rb6+ {[%clk 0:00:04.8]} 104. Ke7 {[%clk 0:00:30.1]}
104... Kg7 {[%clk 0:00:05.4]} 105. Rg3 {[%clk 0:00:30.6]} 105... Rb7 {[%clk
0:00:06.3]} 106. Kd6 {[%clk 0:00:31.6]} 106... Rb6+ {[%clk 0:00:07.1]} 107. Ke5
{[%clk 0:00:32.9]} 107... Kf7 {[%clk 0:00:05.8]} 108. Rg1 {[%clk 0:00:29.6]}
108... Kf8 {[%clk 0:00:05.9]} 109. Be6 {[%clk 0:00:29.8]} 109... Kg7 {[%clk
0:00:06.8]} 110. Rc1 {[%clk 0:00:29.2]} 110... Rb5+ {[%clk 0:00:07.2]} 111. Kd6
{[%clk 0:00:29.9]} 111... Rb6+ {[%clk 0:00:08.2]} 112. Kd7 {[%clk 0:00:27.5]}
112... Rb7+ {[%clk 0:00:08.9]} 113. Kc6 {[%clk 0:00:28.8]} 113... Ra7 {[%clk
0:00:07.8]} 114. Bc8 {[%clk 0:00:26.3]} 114... Re7 {[%clk 0:00:07.2]} 115. Kd6
{[%clk 0:00:27.4]} 115... Ra7 {[%clk 0:00:06.7]} 116. Rg1 {[%clk 0:00:26.5]}
116... Kf6 {[%clk 0:00:07.1]} 117. Rf1+ {[%clk 0:00:27.7]} 117... Kg7 {[%clk
0:00:08.2]} 118. Rf4 {[%clk 0:00:29.1]} 118... Ra3 {[%clk 0:00:07.9]} 119. Be6
{[%clk 0:00:27.5]} 119... Ra6+ {[%clk 0:00:08.6]} 120. Ke5 {[%clk 0:00:27.8]}
120... Ra5+ {[%clk 0:00:09.7]} 121. Bd5 {[%clk 0:00:29.3]} 121... Ra1 {[%clk
0:00:08.9]} 122. Rb4 {[%clk 0:00:29.2]} 122... Re1+ {[%clk 0:00:09.5]} 123. Kd6
{[%clk 0:00:30.2]} 123... Ra1 {[%clk 0:00:08.9]} 124. Rb7+ {[%clk 0:00:31]}
124... Kf6 {[%clk 0:00:09.4]} 1/2-1/2

[Event "*** Titled Tuesday Blitz"]
[Site "Chess.com"]
[Date "2019.02.05"]
[Round "4"]
[White "goodluck06"]
[Black "Kostya_Nikologorskiy"]
[Result "1-0"]
[WhiteElo "2466"]
[BlackElo "2420"]
[TimeControl "180+2"]
[EndTime "13:56:29 PST"]
[Termination "goodluck06 won by resignation"]

1. Nf3 {[%clk 0:03:01.9]} 1... d5 {[%clk 0:02:56.6]} 2. g3 {[%clk 0:03:02.6]}
2... Nf6 {[%clk 0:02:52.7]} 3. Bg2 {[%clk 0:03:03.6]} 3... c6 {[%clk 0:02:49.7]}
4. O-O {[%clk 0:03:04.1]} 4... g6 {[%clk 0:02:48.9]} 5. d3 {[%clk 0:03:01.4]}
5... Bg7 {[%clk 0:02:50.8]} 6. Nbd2 {[%clk 0:03:02.1]} 6... O-O {[%clk
0:02:51.6]} 7. e4 {[%clk 0:03:00.7]} 7... Bg4 {[%clk 0:02:50.1]} 8. h3 {[%clk
0:03:00.7]} 8... Bd7 {[%clk 0:02:42.3]} 9. e5 {[%clk 0:02:52.7]} 9... Ne8 {[%clk
0:02:42.6]} 10. d4 {[%clk 0:02:53.9]} 10... Nc7 {[%clk 0:02:36.7]} 11. Re1
{[%clk 0:02:44.3]} 11... c5 {[%clk 0:02:31.1]} 12. Nb3 {[%clk 0:02:28.6]} 12...
c4 {[%clk 0:02:30.9]} 13. Nbd2 {[%clk 0:02:29.5]} 13... Nc6 {[%clk 0:02:30.1]}
14. c3 {[%clk 0:02:30.3]} 14... b5 {[%clk 0:02:28.1]} 15. a4 {[%clk 0:02:17]}
15... b4 {[%clk 0:02:28.3]} 16. Nh2 {[%clk 0:02:04.5]} 16... Qc8 {[%clk
0:02:07.4]} 17. g4 {[%clk 0:02:04.4]} 17... f6 {[%clk 0:01:53]} 18. exf6 {[%clk
0:01:48.5]} 18... Bxf6 {[%clk 0:01:44.2]} 19. Ndf1 {[%clk 0:01:49]} 19... Na5
{[%clk 0:01:32.2]} 20. Bh6 {[%clk 0:01:45.5]} 20... Re8 {[%clk 0:01:28.5]} 21.
Nf3 {[%clk 0:01:44]} 21... Nb3 {[%clk 0:01:26.5]} 22. Ra2 {[%clk 0:01:43.5]}
22... a5 {[%clk 0:01:08.9]} 23. Ne5 {[%clk 0:01:42.8]} 23... Ra6 {[%clk
0:01:08.4]} 24. Ne3 {[%clk 0:01:36.1]} 24... Bxe5 {[%clk 0:01:07.4]} 25. dxe5
{[%clk 0:01:34.5]} 25... e6 {[%clk 0:01:07.3]} 26. g5 {[%clk 0:01:15.1]} 26...
Re7 {[%clk 0:01:07.8]} 27. Ng4 {[%clk 0:01:16.1]} 27... Bc6 {[%clk 0:01:05.8]}
28. Nf6+ {[%clk 0:01:16.9]} 28... Kh8 {[%clk 0:01:06.8]} 29. Qg4 {[%clk
0:01:17]} 29... Qa8 {[%clk 0:00:55.3]} 30. h4 {[%clk 0:01:04.8]} 30... d4 {[%clk
0:00:53.1]} 31. Bxc6 {[%clk 0:01:05.3]} 31... Qxc6 {[%clk 0:00:52.2]} 32. h5
{[%clk 0:01:02.4]} 32... Nd5 {[%clk 0:00:38.3]} 33. hxg6 {[%clk 0:01:01.3]}
33... hxg6 {[%clk 0:00:34.7]} 34. Bf8 {[%clk 0:00:50]} 34... Nxf6 {[%clk
0:00:32.1]} 35. gxf6 {[%clk 0:00:21.4]} 35... Rh7 {[%clk 0:00:30.1]} 36. f3
{[%clk 0:00:22.6]} 36... Qe8 {[%clk 0:00:28]} 37. Bg7+ {[%clk 0:00:23.1]} 37...
Rxg7 {[%clk 0:00:28.5]} 38. fxg7+ {[%clk 0:00:23.9]} 38... Kxg7 {[%clk
0:00:30.4]} 39. cxd4 {[%clk 0:00:25.3]} 39... Ra7 {[%clk 0:00:29.7]} 40. Re2
{[%clk 0:00:20.8]} 40... Rd7 {[%clk 0:00:28.5]} 41. Qg5 {[%clk 0:00:19.1]} 41...
Qe7 {[%clk 0:00:26.8]} 42. Qxe7+ {[%clk 0:00:18.9]} 42... Rxe7 {[%clk
0:00:28.7]} 43. Rc2 {[%clk 0:00:20.6]} 43... Rc7 {[%clk 0:00:27.6]} 44. Kf2
{[%clk 0:00:19.5]} 44... Nxd4 {[%clk 0:00:28.6]} 45. Rd2 {[%clk 0:00:20.8]}
45... Nb3 {[%clk 0:00:29]} 46. Rd6 {[%clk 0:00:22]} 46... Kf7 {[%clk 0:00:28.3]}
47. Ke3 {[%clk 0:00:23.3]} 47... g5 {[%clk 0:00:25.6]} 48. Kf2 {[%clk
0:00:22.1]} 48... Rc5 {[%clk 0:00:25.4]} 49. Kg3 {[%clk 0:00:18.4]} 49... Rxe5
{[%clk 0:00:21.6]} 50. Rc6 {[%clk 0:00:19.7]} 50... Nd2 {[%clk 0:00:22.7]} 51.
Ra1 {[%clk 0:00:20.2]} 51... Re3 {[%clk 0:00:23.8]} 52. Kg2 {[%clk 0:00:19.2]}
52... Rxf3 {[%clk 0:00:23.4]} 53. Rxc4 {[%clk 0:00:19.6]} 53... Nxc4 {[%clk
0:00:22.9]} 54. Kxf3 {[%clk 0:00:20.8]} 54... Nxb2 {[%clk 0:00:24.8]} 55. Ke4
{[%clk 0:00:21.6]} 55... Nc4 {[%clk 0:00:25.3]} 56. Kd4 {[%clk 0:00:21.6]} 56...
Nd2 {[%clk 0:00:26.6]} 57. Kd3 {[%clk 0:00:22.5]} 57... Nb3 {[%clk 0:00:27]} 58.
Rg1 {[%clk 0:00:24]} 58... Nc5+ {[%clk 0:00:27.9]} 59. Kc4 {[%clk 0:00:25.3]}
59... Nxa4 {[%clk 0:00:29.1]} 60. Rxg5 {[%clk 0:00:26.8]} 60... Nb6+ {[%clk
0:00:29.1]} 61. Kb5 {[%clk 0:00:27.8]} 61... Nd5 {[%clk 0:00:30.3]} 62. Kxa5
{[%clk 0:00:28.1]} 62... Kf6 {[%clk 0:00:31.7]} 63. Rg2 {[%clk 0:00:28.4]} 63...
Ke5 {[%clk 0:00:32.7]} 64. Ka4 {[%clk 0:00:29.9]} 64... Kd4 {[%clk 0:00:31.9]}
65. Kb3 {[%clk 0:00:31.2]} 65... e5 {[%clk 0:00:32.6]} 66. Rd2+ {[%clk
0:00:28.4]} 66... Kc5 {[%clk 0:00:33.1]} 67. Re2 {[%clk 0:00:29]} 67... Kd6
{[%clk 0:00:32.5]} 68. Kc4 {[%clk 0:00:27.8]} 68... Ke6 {[%clk 0:00:29.2]} 69.
Rd2 {[%clk 0:00:27]} 69... Ne3+ {[%clk 0:00:21.2]} 70. Kxb4 {[%clk 0:00:27.5]}
70... Kf5 {[%clk 0:00:22.5]} 71. Kc3 {[%clk 0:00:27.2]} 71... Ke4 {[%clk
0:00:21.4]} 72. Re2 {[%clk 0:00:26.9]} 72... Kf3 {[%clk 0:00:22.2]} 73. Ra2
{[%clk 0:00:26]} 73... e4 {[%clk 0:00:21.9]} 74. Kd4 {[%clk 0:00:25.9]} 74...
Nf1 {[%clk 0:00:18.9]} 75. Ra1 {[%clk 0:00:25]} 75... Nd2 {[%clk 0:00:14.4]} 76.
Ra3+ {[%clk 0:00:24.5]} 76... Kf2 {[%clk 0:00:13.7]} 77. Rh3 {[%clk 0:00:20.5]}
77... Ke2 {[%clk 0:00:10.5]} 78. Rh2+ {[%clk 0:00:20.9]} 78... Kd1 {[%clk
0:00:08]} 79. Rh1+ {[%clk 0:00:21.5]} 79... Ke2 {[%clk 0:00:08.6]} 80. Rh2+
{[%clk 0:00:22.1]} 80... Kd1 {[%clk 0:00:09.7]} 81. Kc3 {[%clk 0:00:23.4]} 81...
Nf3 {[%clk 0:00:06.7]} 82. Rf2 {[%clk 0:00:20.5]} 82... Ke1 {[%clk 0:00:07.2]}
83. Ra2 {[%clk 0:00:20.2]} 83... Ng5 {[%clk 0:00:04.6]} 84. Kd4 {[%clk
0:00:20.5]} 84... Kf1 {[%clk 0:00:06]} 85. Ke3 {[%clk 0:00:21.7]} 85... Kg1
{[%clk 0:00:06.3]} 86. Kf4 {[%clk 0:00:22.7]} 86... Nf3 {[%clk 0:00:07]} 87. Kg3
{[%clk 0:00:24.1]} 87... Kf1 {[%clk 0:00:07.6]} 88. Kf4 {[%clk 0:00:25.4]} 88...
Ng1 {[%clk 0:00:05.4]} 89. Kxe4 {[%clk 0:00:21.6]} 89... Ne2 {[%clk 0:00:06.8]}
90. Ke3 {[%clk 0:00:22.5]} 90... Nc3 {[%clk 0:00:05.8]} 91. Rf2+ {[%clk
0:00:23.2]} 91... Ke1 {[%clk 0:00:06.4]} 92. Rc2 {[%clk 0:00:23.2]} 92... Nd5+
{[%clk 0:00:07.6]} 93. Kd4 {[%clk 0:00:23.4]} 93... Nb4 {[%clk 0:00:07.2]} 94.
Rh2 {[%clk 0:00:23]} 94... Kf1 {[%clk 0:00:07.2]} 95. Ke3 {[%clk 0:00:24.5]}
95... Nd5+ {[%clk 0:00:08.2]} 96. Kf3 {[%clk 0:00:24.5]} 96... Ke1 {[%clk
0:00:09.6]} 97. Ra2 {[%clk 0:00:26.1]} 97... Kd1 {[%clk 0:00:10.6]} 98. Rh2
{[%clk 0:00:24.8]} 98... Kc1 {[%clk 0:00:11.6]} 99. Ke4 {[%clk 0:00:26.7]} 99...
Nf6+ {[%clk 0:00:12.5]} 100. Kd3 {[%clk 0:00:28.6]} 100... Nd5 {[%clk
0:00:13.3]} 101. Kc4 {[%clk 0:00:28.6]} 101... Ne3+ {[%clk 0:00:14.1]} 102. Kc3
{[%clk 0:00:29.5]} 102... Nd5+ {[%clk 0:00:15.3]} 103. Kd4 {[%clk 0:00:30.6]}
103... Nf4 {[%clk 0:00:16.5]} 104. Ke3 {[%clk 0:00:31.2]} 104... Nd5+ {[%clk
0:00:17.5]} 105. Kd3 {[%clk 0:00:32.5]} 105... Nf4+ {[%clk 0:00:18.4]} 106. Ke4
{[%clk 0:00:32.4]} 106... Ne6 {[%clk 0:00:19.2]} 107. Ke5 {[%clk 0:00:33.7]}
107... Nc5 {[%clk 0:00:19.1]} 108. Kd4 {[%clk 0:00:34.8]} 108... Ne6+ {[%clk
0:00:20.3]} 109. Kc3 {[%clk 0:00:36.7]} 109... Kd1 {[%clk 0:00:21.4]} 110. Rh5
{[%clk 0:00:32.6]} 110... Nf4 {[%clk 0:00:20]} 111. Rf5 {[%clk 0:00:33.6]}
111... Ne6 {[%clk 0:00:17.1]} 112. Rd5+ {[%clk 0:00:31.1]} 112... Kc1 {[%clk
0:00:14.2]} 113. Re5 {[%clk 0:00:32.3]} 1-0